bitfinex/quotes_ETHUSD_20241024
["timestamp","ask_amount","ask_price","bid_price","bid_amount"]
[1729810180362,1.61577113,2533.0,2532.9,1.63484207]
[1729810181398,6.11365113,2533.0,2532.7,1.63484207]
[1729810181560,1.61577113,2532.8,2532.7,1.63484207]
[1729810181756,0.55,2532.9,2532.7,1.63484207]
[1729810181757,2.16577113,2532.9,2532.7,1.63484207]
[1729810181970,0.55,2532.9,2532.7,1.63484207]
[1729810182176,0.55,2532.9,2532.8,0.82924207]
[1729810182363,2.16577113,2532.9,2532.8,0.82924207]
[1729810182960,2.16577113,2532.9,2532.7,2.878259]
[1729810183193,2.16577113,2532.9,2532.8,7.8964]
[1729810184801,6.11381113,2532.9,2532.8,7.8964]
[1729810184960,7.11998224,2532.9,2532.8,7.8964]
[1729810185160,7.92578224,2532.9,2532.8,7.8964]
[1729810185370,6.91961113,2532.9,2532.8,7.8964]
[1729810187165,6.11381113,2532.9,2532.8,7.8964]
[1729810187479,2.16577113,2532.9,2532.8,7.8964]
[1729810188014,6.11381113,2532.9,2532.8,7.8964]
[1729810192090,6.11381113,2532.9,2532.8,8.6519]
[1729810193929,4.49804,2532.9,2532.8,8.6519]
[1729810194229,2.16577113,2532.9,2532.8,8.6519]
[1729810194988,0.55,2532.9,2532.8,8.6519]
[1729810195228,2.16577113,2532.9,2532.8,8.6519]
[1729810195547,0.55,2533.0,2532.8,8.6519]
[1729810195746,1.61577113,2532.9,2532.8,8.6519]
[1729810197334,1.61577113,2532.9,2532.8,9.91194]
[1729810198734,2.16577113,2533.0,2532.8,9.91194]
[1729810198894,6.11355113,2533.1,2532.8,9.91194]
[1729810199095,1.61577113,2533.0,2532.8,9.91194]
[1729810199408,2.16577113,2533.0,2532.9,0.991194]
[1729810199596,2.16577113,2533.0,2532.9,8.887294]
[1729810199795,6.11365113,2533.0,2532.9,8.887294]
[1729810203829,6.11365113,2533.0,2532.9,7.8961]
[1729810205508,8.51832226,2533.0,2532.9,7.8961]
[1729810205714,6.90255113,2533.0,2532.9,7.8961]
[1729810207736,8.51832226,2533.0,2532.9,7.8961]
[1729810209045,11.51832226,2533.0,2532.9,7.8961]
[1729810209211,13.06592749,2533.0,2532.9,7.8961]
[1729810209629,13.07592749,2533.0,2532.9,7.8961]
[1729810210030,13.06592749,2533.0,2532.9,7.8961]
[1729810210715,13.07592749,2533.0,2532.9,7.8961]
[1729810211647,13.08592749,2533.0,2532.9,7.8961]
[1729810212448,4.49944,2532.0,2531.9,0.7617]
[1729810212616,0.55,2531.8,2531.7,0.7617]
[1729810212948,2.16577113,2531.8,2531.7,0.7617]
[1729810213242,2.16577113,2531.9,2531.7,0.7617]
[1729810213544,2.16577113,2531.9,2531.7,1.24079017]
[1729810213926,0.55,2531.9,2531.7,1.24079017]
[1729810214127,2.16577113,2531.9,2531.7,1.24079017]
[1729810215139,0.55,2531.9,2531.7,0.7617]
[1729810215940,3.94937,2532.1,2531.7,0.7617]
[1729810216151,3.949,2532.3,2531.9,0.7617]
[1729810216307,3.949,2532.3,2531.7,1.61577113]
[1729810216308,1.61577113,2532.3,2532.1,0.7617]
[1729810216651,3.94882,2532.4,2532.1,0.7617]
[1729810216830,1.61577113,2532.2,2532.1,0.7617]
[1729810217033,1.61577113,2532.2,2532.1,1.232822]
[1729810217412,1.61577113,2532.3,2532.1,1.232822]
[1729810218510,1.61577113,2532.4,2532.1,1.232822]
[1729810218846,6.11462113,2532.4,2532.1,1.3117994]
[1729810219010,2.16577113,2532.4,2532.1,1.3117994]
[1729810219406,2.16577113,2532.4,2532.2,0.52611594]
[1729810220621,0.55,2532.5,2532.2,0.52611594]
[1729810220822,0.7867,2532.8,2532.3,4.78955743]
[1729810220823,1.61577113,2532.7,2532.3,4.78955743]
[1729810221142,3.94853,2532.6,2532.4,0.53156734]
[1729810221441,3.94853,2532.6,2532.3,0.7617]
[1729810221661,3.94853,2532.6,2532.5,7.8973]
[1729810222028,1.61577113,2532.6,2532.5,7.8973]
[1729810224429,5.56428113,2532.6,2532.5,7.8973]
[1729810224661,6.11428113,2532.6,2532.5,7.8973]
[1729810225658,2.16577113,2532.6,2532.5,7.8973]
[1729810225858,2.16577113,2532.6,2532.5,8.7632]
[1729810226035,6.11428113,2532.6,2532.5,8.7632]
[1729810226439,6.11428113,2532.6,2532.5,7.8973]
[1729810228475,6.93658113,2532.6,2532.5,7.8973]
[1729810231173,6.93658113,2532.6,2532.5,8.7099]
[1729810231174,4.49851,2532.6,2532.5,8.7099]
[1729810231417,3.94836,2532.7,2532.5,8.7099]
[1729810231678,1.61577113,2532.6,2532.5,8.7099]
[1729810231836,1.61577113,2532.6,2532.5,9.58089]
[1729810232251,1.69728372,2532.6,2532.5,9.58089]
[1729810232446,2.16577113,2532.6,2532.5,9.58089]
[1729810232878,2.24728372,2532.6,2532.5,9.58089]
[1729810233170,0.63151259,2532.6,2532.5,8.7099]
[1729810233375,0.08151259,2532.6,2532.5,12.65856]
[1729810233580,3.9479,2533.0,2532.5,11.84596]
[1729810233581,1.61577113,2532.9,2532.5,11.84596]
[1729810233780,3.94784,2533.1,2532.6,0.8126]
[1729810233945,4.02650121,2532.8,2532.7,7.8967]
[1729810234145,3.94819,2532.8,2532.7,7.8967]
[1729810234382,4.02650121,2532.8,2532.7,7.8967]
[1729810235075,6.19227234,2532.8,2532.7,7.8967]
[1729810241412,6.19227234,2532.8,2532.7,8.6483]
[1729810241413,2.24408234,2532.8,2532.7,8.6483]
[1729810242714,0.07831121,2532.8,2532.7,8.6483]
[1729810243220,1.69359982,2532.8,2532.7,8.6483]
[1729810244896,0.07782869,2532.8,2532.7,8.6483]
[1729810245204,1.69359982,2532.8,2532.7,8.6483]
[1729810245378,0.07782869,2532.8,2532.7,8.6483]
[1729810247119,1.69359982,2532.8,2532.7,8.6483]
[1729810247279,0.07782869,2532.8,2532.7,9.907992]
[1729810248824,1.69359982,2532.8,2532.7,9.907992]
[1729810249032,1.69359982,2532.8,2532.7,8.6483]
[1729810249402,6.19178982,2532.8,2532.7,7.8967]
[1729810259133,2.24359982,2532.8,2532.7,7.8967]
[1729810260304,0.07782869,2532.8,2532.7,7.8967]
[1729810260500,0.07782869,2532.8,2532.7,9.872014]
[1729810260701,0.55,2532.9,2532.7,9.872014]
[1729810261033,0.07258251,2532.8,2532.7,9.872014]
[1729810263806,1.68835364,2532.8,2532.7,8.6875]
[1729810264001,5.63654364,2532.8,2532.7,7.8967]
[1729810264201,6.18654364,2532.8,2532.7,7.8967]
[1729810264997,2.23835364,2532.8,2532.7,7.8967]
[1729810266225,6.18654364,2532.8,2532.7,7.8967]
[1729810273274,2.23835364,2532.8,2532.7,7.8967]
[1729810275234,6.18654364,2532.8,2532.7,7.8967]
[1729810283471,7.80231477,2532.8,2532.7,7.8967]
[1729810283674,7.44238912,2532.8,2532.7,7.8967]
[1729810285755,9.05816025,2532.8,2532.7,7.8967]
[1729810285958,7.44238912,2532.8,2532.7,7.8967]
[1729810288379,4.57077251,2532.8,2532.7,8.7015]
[1729810288593,6.18654364,2532.8,2532.7,8.7015]
[1729810289059,6.18654364,2532.8,2532.7,7.8967]
[1729810292926,2.23835364,2532.8,2532.7,7.8967]
[1729810293326,0.07258251,2532.8,2532.7,9.57165]
[1729810293684,1.61577113,2532.9,2532.7,9.57165]
[1729810293920,0.07024834,2532.8,2532.7,9.57165]
[1729810294585,0.07024834,2532.8,2532.7,13.52]
[1729810295395,1.61577113,2533.0,2532.8,4.75295]
[1729810295597,1.61577113,2533.0,2532.9,7.8961]
[1729810295997,1.61577113,2533.2,2532.9,7.8961]
[1729810296199,2.16577113,2533.3,2533.0,0.87525014]
[1729810296386,1.61577113,2533.3,2533.1,11.84323]
[1729810296787,1.61577113,2533.3,2533.2,0.7963]
[1729810297026,1.61577113,2533.3,2533.2,8.6915]
[1729810298313,0.55,2533.5,2533.2,8.6915]
[1729810298514,1.61577113,2533.4,2533.2,8.6915]
[1729810298711,0.55,2533.5,2533.2,13.902953]
[1729810298712,1.61577113,2533.5,2533.2,13.902953]
[1729810299032,1.62577113,2534.4,2533.2,13.902953]
[1729810299033,4.74966,2534.0,2533.4,4.74346]
[1729810299248,3.94664,2533.8,2533.5,7.8942]
[1729810299839,1.61577113,2533.6,2533.5,7.8942]
[1729810300612,1.68191059,2533.6,2533.5,7.8942]
[1729810301313,1.68191059,2533.6,2533.5,9.157981]
[1729810303308,1.68191059,2533.6,2533.5,15.51715213]
[1729810303309,0.06613946,2533.6,2533.5,15.51715213]
[1729810303650,1.61577113,2533.9,2533.6,0.7963]
[1729810303811,1.61577113,2533.9,2533.7,7.8936]
[1729810304010,3.94601,2534.2,2533.7,11.84033]
[1729810304252,1.61577113,2534.0,2533.8,0.7963]
[1729810304550,1.61577113,2534.0,2533.9,7.893]
[1729810308084,5.56209113,2534.0,2533.9,7.893]
[1729810308294,6.11209113,2534.0,2533.9,7.893]
[1729810312569,2.16577113,2534.0,2533.9,7.893]
[1729810313084,6.11209113,2534.0,2533.9,7.893]
[1729810314299,2.16577113,2534.0,2533.9,7.893]
[1729810314602,6.11209113,2534.0,2533.9,7.893]
[1729810315570,6.17908511,2534.0,2533.9,7.893]
[1729810316889,0.61699398,2534.0,2533.9,7.893]
[1729810317073,2.23276511,2534.0,2533.9,7.893]
[1729810319209,6.17908511,2534.0,2533.9,7.893]
[1729810319802,0.06699398,2534.0,2533.9,8.6889]
[1729810320123,1.61577113,2534.1,2533.9,13.898924]
[1729810320281,1.61577113,2534.1,2533.9,8.6889]
[1729810320481,0.06704354,2534.0,2533.9,8.6889]
[1729810321096,1.68281467,2534.0,2533.9,8.6889]
[1729810322776,0.06704354,2534.0,2533.9,8.6889]
[1729810324213,0.06704354,2534.0,2533.9,14.25115113]
[1729810324397,1.61577113,2534.4,2533.9,9.71277011]
[1729810324605,1.61577113,2534.4,2534.1,0.7959]
[1729810324786,1.61577113,2534.4,2534.2,7.892]
[1729810325298,1.61577113,2534.3,2534.2,7.892]
[1729810325513,6.11163113,2534.3,2534.2,7.892]
[1729810329995,6.88113113,2534.3,2534.2,7.892]
[1729810330238,8.12539236,2534.3,2534.2,7.892]
[1729810330600,8.19046411,2534.3,2534.2,7.892]
[1729810333843,11.19046411,2534.3,2534.2,7.892]
[1729810338519,11.21046411,2534.3,2534.2,1.97297]
[1729810339558,11.21046411,2534.3,2533.2,0.755]
[1729810339559,3.83457175,2534.3,2533.3,1.61577113]
[1729810339759,5.56220113,2534.0,2533.5,0.755]
[1729810339943,5.56220113,2534.0,2533.6,0.755]
[1729810339944,3.94643,2534.0,2533.6,0.755]
[1729810340252,1.61577113,2533.8,2533.7,0.470208]
[1729810340663,0.06461099,2533.8,2533.7,0.470208]
[1729810341220,0.06461099,2533.8,2533.7,1.36663615]
[1729810341460,5.56180113,2534.2,2533.8,0.8175]
[1729810341754,1.61577113,2534.0,2533.8,0.89642223]
[1729810342056,1.61577113,2534.0,2533.8,1.34885602]
[1729810342630,1.61577113,2534.1,2533.8,1.42777982]
[1729810342848,0.55,2534.1,2533.8,1.42777982]
[1729810343050,4.49618,2534.1,2533.8,1.42777982]
[1729810343225,6.11195113,2534.1,2533.8,1.42777982]
[1729810344056,6.11195113,2534.1,2533.9,0.2726978]
[1729810345573,5.56209113,2534.0,2533.8,0.8175]
[1729810345870,3.94671,2533.8,2533.6,0.8175]
[1729810346071,1.61577113,2533.7,2533.6,0.8175]
[1729810346271,1.68039718,2533.7,2533.6,0.8175]
[1729810346478,1.68039718,2533.7,2533.6,4.76445]
[1729810346479,0.06462605,2533.7,2533.6,4.76445]
[1729810346783,5.56219113,2534.0,2533.6,1.58801171]
[1729810346999,5.56219113,2534.0,2533.6,1.50908582]
[1729810347000,0.06463955,2533.7,2533.6,1.50908582]
[1729810347204,5.56228113,2533.9,2533.6,1.50908582]
[1729810347499,1.61577113,2533.7,2533.6,0.8175]
[1729810347707,5.62712518,2533.8,2533.6,0.8175]
[1729810347890,0.06463955,2533.7,2533.6,0.8175]
[1729810348120,5.56245113,2533.8,2533.6,0.8175]
[1729810348289,1.68041068,2533.7,2533.6,0.8175]
[1729810348874,0.06463955,2533.7,2533.6,0.8175]
[1729810349162,3.94668,2533.8,2533.6,0.8175]
[1729810349474,0.06463955,2533.7,2533.6,0.8175]
[1729810349654,0.55,2533.8,2533.6,1.50910868]
[1729810349861,0.06463955,2533.7,2533.6,1.50910868]
[1729810350110,0.55,2533.8,2533.6,1.50910868]
[1729810350287,0.06463081,2533.7,2533.6,1.50910868]
[1729810350602,4.49665,2533.8,2533.6,1.50910868]
[1729810350900,0.06462206,2533.7,2533.6,1.50910868]
[1729810351057,4.49665,2533.8,2533.6,1.50910868]
[1729810351257,0.06462206,2533.7,2533.6,1.50910868]
[1729810351472,4.49665,2533.8,2533.6,1.50910868]
[1729810351699,0.06462206,2533.7,2533.6,1.50910868]
[1729810351936,4.49665,2533.8,2533.6,1.50910868]
[1729810352138,0.06462206,2533.7,2533.6,1.50910868]
[1729810352798,4.49665,2533.8,2533.6,1.50910868]
[1729810353000,0.06462206,2533.7,2533.6,1.50910868]
[1729810353309,4.49665,2533.8,2533.6,1.50910868]
[1729810353512,0.06462206,2533.7,2533.6,1.50910868]
[1729810353733,4.49665,2533.8,2533.6,1.50910868]
[1729810353898,0.06462206,2533.7,2533.6,1.50910868]
[1729810354098,4.49665,2533.8,2533.6,1.50910868]
[1729810354397,0.06462206,2533.7,2533.6,1.50910868]
[1729810354597,4.49665,2533.8,2533.6,1.50910868]
[1729810354924,0.06462206,2533.7,2533.6,1.50910868]
[1729810355236,4.49665,2533.8,2533.6,1.50910868]
[1729810355403,0.06462206,2533.7,2533.6,1.50910868]
[1729810355630,4.49665,2533.8,2533.6,1.50910868]
[1729810355933,0.06462206,2533.7,2533.6,1.50910868]
[1729810356303,4.49665,2533.8,2533.6,1.50910868]
[1729810356538,4.01141206,2533.7,2533.6,0.8175]
[1729810357645,4.01141206,2533.7,2533.6,8.7113]
[1729810357998,0.06462206,2533.7,2533.6,8.7113]
[1729810358205,8.44344,2533.8,2533.6,8.7113]
[1729810358406,4.00971184,2533.7,2533.6,8.7113]
[1729810358805,4.00971184,2533.7,2533.6,7.8938]
[1729810359496,4.55971184,2533.7,2533.6,7.8938]
[1729810362275,0.61292184,2533.7,2533.6,7.8938]
[1729810362446,0.61292184,2533.7,2533.6,8.84676902]
[1729810363375,0.61292184,2533.7,2533.6,7.8938]
[1729810364858,4.55971184,2533.7,2533.6,7.8938]
[1729810365373,0.61292184,2533.7,2533.6,7.8938]
[1729810377729,0.61292184,2533.7,2533.6,8.72279018]
[1729810383342,4.55971184,2533.7,2533.6,8.72279018]
[1729810383743,0.61292184,2533.7,2533.6,8.72279018]
[1729810384683,0.61292184,2533.7,2533.6,7.8938]
[1729810385040,0.61292184,2533.7,2533.6,8.72205113]
[1729810385681,0.61292184,2533.7,2533.6,7.8938]
[1729810385840,0.61292184,2533.7,2533.6,8.72227718]
[1729810386044,0.61292184,2533.7,2533.6,9.13728527]
[1729810386245,0.61292184,2533.7,2533.6,8.72226586]
[1729810388083,0.61292184,2533.7,2533.6,7.8938]
[1729810388783,0.61292184,2533.7,2533.6,9.13728527]
[1729810388986,0.61292184,2533.7,2533.6,7.8938]
[1729810389346,0.61292184,2533.7,2533.6,8.72237723]
[1729810389546,0.61292184,2533.7,2533.6,7.8938]
[1729810389882,4.55971184,2533.7,2533.6,8.7224829]
[1729810390480,0.61292184,2533.7,2533.6,8.7224829]
[1729810390800,0.61292184,2533.7,2533.6,7.8938]
[1729810391450,0.61292184,2533.7,2533.6,8.72257808]
[1729810391656,0.06292184,2533.7,2533.6,11.20287964]
[1729810392086,0.06056192,2533.7,2533.6,11.20287964]
[1729810392281,3.94634,2534.0,2533.6,11.20287964]
[1729810392482,3.94634,2534.0,2533.7,0.82889575]
[1729810392667,3.94634,2534.0,2533.8,7.8932]
[1729810396159,3.943227,2534.0,2533.8,7.8932]
[1729810396890,7.889667,2534.0,2533.8,7.8932]
[1729810397133,3.943227,2534.0,2533.8,7.8932]
[1729810397868,7.889707,2534.0,2533.8,7.8932]
[1729810398139,3.943227,2534.0,2533.8,7.8932]
[1729810400605,3.94648,2533.9,2533.8,7.8932]
[1729810403356,4.49648,2533.9,2533.8,7.8932]
[1729810403639,5.27738,2533.9,2533.8,7.8932]
[1729810405332,7.97710124,2533.9,2533.8,7.8932]
[1729810405533,8.03771982,2533.9,2533.8,7.8932]
[1729810417989,11.03771982,2533.9,2533.8,7.8932]
[1729810425882,12.65349095,2533.9,2533.8,7.8932]
[1729810426079,4.49773,2533.1,2533.0,0.7658]
[1729810426357,4.49773,2533.1,2532.7,0.7658]
[1729810426358,4.49821,2532.8,2532.7,0.7658]
[1729810426859,4.55768134,2532.8,2532.7,0.7658]
[1729810427060,0.60947134,2532.8,2532.7,0.7658]
[1729810427257,6.17343247,2532.8,2532.5,0.7658]
[1729810427456,0.55,2532.6,2532.5,0.7658]
[1729810427758,0.05938954,2532.6,2532.5,0.7658]
[1729810427956,0.05938954,2532.6,2532.5,1.09082309]
[1729810428312,0.05938954,2532.6,2532.5,2.70659422]
[1729810428600,0.55,2533.0,2532.6,0.7658]
[1729810428772,0.55,2533.0,2532.8,0.7658]
[1729810428971,0.55,2533.1,2532.8,6.32968113]
[1729810429294,0.55,2533.2,2533.0,0.7658]
[1729810431702,4.4976,2533.2,2533.0,0.7658]
[1729810433404,0.55,2533.3,2533.0,0.7658]
[1729810433698,4.49745,2533.3,2533.0,0.7658]
[1729810435605,0.05945015,2533.2,2533.0,0.7658]
[1729810435797,0.05945015,2533.2,2533.0,1.47075662]
[1729810435975,4.49745,2533.3,2533.0,1.47075662]
[1729810436307,6.11322113,2533.3,2533.0,1.47075662]
[1729810436667,0.05945015,2533.2,2533.0,1.47075662]
[1729810437208,0.05941564,2533.1,2533.0,1.47075662]
[1729810438699,0.05941564,2533.1,2533.0,0.7658]
[1729810439885,3.94796,2533.0,2532.6,0.8047]
[1729810440090,0.05929335,2532.9,2532.6,0.8047]
[1729810440288,3.94796,2533.0,2532.7,7.8966]
[1729810440502,0.05929335,2532.9,2532.8,0.8047]
[1729810440699,0.05929335,2532.9,2532.8,0.88365611]
[1729810440890,4.49773,2533.1,2532.8,8.78005611]
[1729810441099,4.49773,2533.1,2532.8,8.7011]
[1729810441417,0.05934681,2533.0,2532.8,10.28104123]
[1729810445789,5.62303794,2533.0,2532.8,8.7011]
[1729810445990,3.94804,2532.9,2532.8,8.7011]
[1729810446199,4.00726343,2532.9,2532.8,8.7011]
[1729810446401,5.62303456,2532.9,2532.8,7.8964]
[1729810446805,6.17303456,2532.9,2532.8,7.8964]
[1729810447034,7.24013002,2532.9,2532.8,7.8964]
[1729810449988,5.62435889,2532.9,2532.8,7.8964]
[1729810450196,4.55726343,2532.9,2532.8,7.8964]
[1729810450707,6.17303456,2532.9,2532.8,7.8964]
[1729810451315,0.05922343,2532.9,2532.8,7.8964]
[1729810451830,5.62303456,2532.9,2532.8,7.8964]
[1729810453032,6.17303456,2532.9,2532.8,7.8964]
[1729810454315,4.55726343,2532.9,2532.8,7.8964]
[1729810455217,6.17303456,2532.9,2532.8,7.8964]
[1729810458855,0.60922343,2532.9,2532.8,7.8964]
[1729810464307,0.05922343,2532.9,2532.8,11.16948113]
[1729810464508,0.05922343,2532.9,2532.8,9.55371]
[1729810464727,3.94766,2533.2,2532.8,9.55371]
[1729810464947,3.94766,2533.2,2533.0,0.7872]
[1729810465252,3.94766,2533.2,2533.1,7.8955]
[1729810465653,4.00699239,2533.2,2533.1,7.8955]
[1729810466018,4.55699239,2533.2,2533.1,7.8955]
[1729810467345,6.17276352,2533.2,2533.1,7.8955]
[1729810467552,7.95278187,2533.2,2533.1,7.8955]
[1729810471923,7.95278187,2533.2,2533.1,7.8955]
[1729810474651,7.18478187,2533.2,2533.1,7.8955]
[1729810474857,6.17276352,2533.2,2533.1,7.8955]
[1729810486859,4.55699239,2533.2,2533.1,7.8955]
[1729810487067,6.17276352,2533.2,2533.1,7.8955]
[1729810487939,4.55699239,2533.2,2533.1,7.8955]
[1729810495649,6.17276352,2533.2,2533.1,7.8955]
[1729810501388,0.60933239,2533.2,2533.1,8.7011]
[1729810502659,0.05933239,2533.2,2533.1,8.7011]
[1729810502860,0.55,2533.4,2533.1,8.7011]
[1729810503076,0.05675309,2533.2,2533.1,8.7011]
[1729810503696,6.11304113,2533.4,2533.1,8.7011]
[1729810503899,0.05661809,2533.2,2533.1,8.7011]
[1729810504062,6.11304113,2533.4,2533.1,8.7011]
[1729810504262,0.05663163,2533.2,2533.1,8.7011]
[1729810504495,4.49727,2533.4,2533.1,8.7011]
[1729810504496,4.49727,2533.4,2533.1,10.33444953]
[1729810504795,6.11304113,2533.4,2533.1,8.7011]
[1729810504992,0.05667561,2533.3,2533.1,8.7011]
[1729810510106,0.05667561,2533.3,2533.2,0.88454112]
[1729810510265,0.05667561,2533.3,2533.2,0.8056]
[1729810510468,1.61577113,2533.5,2533.2,8.7008]
[1729810510698,3.94702,2533.6,2533.2,8.7008]
[1729810510699,0.05472291,2533.3,2533.2,8.7008]
[1729810511001,0.05479904,2533.3,2533.2,8.7008]
[1729810512005,4.00221904,2533.3,2533.2,8.7008]
[1729810514724,0.05479904,2533.3,2533.2,8.7008]
[1729810515290,0.05479904,2533.3,2533.2,10.04841857]
[1729810518129,0.05479904,2533.3,2533.2,8.7008]
[1729810522342,4.00221904,2533.3,2533.2,7.8952]
[1729810528843,0.05479904,2533.3,2533.2,7.8952]
[1729810529044,3.94703,2533.6,2533.2,8.6686]
[1729810529204,3.94703,2533.6,2533.3,1.50213826]
[1729810529404,3.94703,2533.6,2533.4,7.8945]
[1729810529405,5.56280113,2533.6,2533.4,7.8945]
[1729810531243,3.94703,2533.6,2533.4,7.8945]
[1729810531737,5.56280113,2533.6,2533.4,7.8945]
[1729810533911,3.9471,2533.5,2533.4,7.8945]
[1729810534111,1.61577113,2533.6,2533.4,7.8945]
[1729810534430,5.56274113,2533.6,2533.4,7.8945]
[1729810534636,9.50983113,2533.6,2533.4,7.8945]
[1729810534814,3.94697,2533.6,2533.4,7.8945]
[1729810535210,5.56274113,2533.6,2533.4,7.8945]
[1729810536454,3.9471,2533.5,2533.4,7.8945]
[1729810537615,4.4971,2533.5,2533.4,7.8945]
[1729810540624,4.54717754,2533.5,2533.4,7.8945]
[1729810541622,6.16294867,2533.5,2533.4,7.8945]
[1729810541818,8.08870054,2533.5,2533.4,7.8945]
[1729810561434,11.08870054,2533.5,2533.4,7.8945]
[1729810571888,8.64132941,2533.5,2533.4,7.8945]
[1729810572095,10.25710054,2533.5,2533.4,7.8945]
[1729810577587,7.54717754,2533.5,2533.4,7.8945]
[1729810577908,6.16294867,2533.5,2533.4,7.8945]
[1729810584846,4.54717754,2533.5,2533.4,7.8945]
[1729810585018,4.54717754,2533.5,2533.4,8.6814]
[1729810586143,6.16294867,2533.5,2533.4,8.6814]
[1729810588656,6.16294867,2533.5,2533.4,7.8945]
[1729810602915,7.97804054,2533.5,2533.4,7.8945]
[1729810606967,5.55816941,2533.5,2533.4,7.8945]
[1729810607134,0.05007754,2533.5,2533.4,8.6862]
[1729810607523,3.99717754,2533.5,2533.4,8.6862]
[1729810608158,0.05007754,2533.5,2533.4,8.6862]
[1729810608350,0.05007754,2533.5,2533.4,9.55482]
[1729810609043,1.61577113,2533.7,2533.4,9.55482]
[1729810609538,0.04511201,2533.6,2533.4,9.55482]
[1729810615665,1.66088314,2533.6,2533.4,9.55482]
[1729810616132,3.9471,2533.5,2533.4,9.55482]
[1729810616331,3.9906529,2533.5,2533.4,9.55482]
[1729810616629,5.60642403,2533.5,2533.4,9.55482]
[1729810616831,5.60642403,2533.5,2533.4,7.8945]
[1729810617049,6.15642403,2533.5,2533.4,7.8945]
[1729810631756,6.98822403,2533.5,2533.4,7.8945]
[1729810638011,9.98822403,2533.5,2533.4,7.8945]
[1729810638875,0.8318,2532.9,2532.4,0.812]
[1729810639083,6.11451113,2532.5,2532.4,0.812]
[1729810639408,6.15641857,2532.5,2532.4,0.812]
[1729810641182,4.54064744,2532.5,2532.4,0.812]
[1729810641368,6.15641857,2532.5,2532.4,0.812]
[1729810641709,6.15641857,2532.5,2532.0,0.7516]
[1729810641881,3.94898,2532.3,2532.0,1.07118709]
[1729810642282,0.04178554,2532.2,2532.0,1.07118709]
[1729810642602,3.94898,2532.3,2532.0,1.07118709]
[1729810642801,0.04176943,2532.1,2532.0,1.07118709]
[1729810643001,0.55,2532.4,2532.0,1.93535822]
[1729810643203,0.55,2532.4,2532.1,1.34009382]
[1729810644883,0.55,2532.4,2532.1,1.41906946]
[1729810645111,0.55,2532.4,2532.1,1.34009382]
[1729810645411,4.4989,2532.4,2532.1,1.34009382]
[1729810645589,0.04137488,2532.3,2532.1,1.34009382]
[1729810649415,0.04137488,2532.3,2532.1,0.7516]
[1729810655011,3.99035488,2532.3,2532.1,0.7516]
[1729810656096,3.99035488,2532.3,2531.9,3.94952]
[1729810656286,1.61577113,2532.2,2531.8,4.74612]
[1729810656593,0.0413443,2532.1,2531.8,5.77729711]
[1729810657295,1.61577113,2532.2,2531.8,5.77729711]
[1729810657526,0.04130975,2532.0,2531.8,5.77729711]
[1729810657682,0.55,2532.4,2532.0,3.94942]
[1729810657888,0.55,2532.4,2532.2,0.7964]
[1729810658422,1.61577113,2532.6,2532.2,7.00534392]
[1729810658423,4.49852,2532.6,2532.2,7.00534392]
[1729810658593,4.49852,2532.6,2532.2,7.08431807]
[1729810658919,4.49852,2532.6,2532.2,1.51941694]
[1729810660192,0.55,2532.6,2532.2,1.51941694]
[1729810660387,0.55,2532.4,2532.2,1.51941694]
[1729810660591,0.04135002,2532.3,2532.2,1.51941694]
[1729810660905,0.04135002,2532.3,2532.2,1.44044279]
[1729810662026,0.04135002,2532.3,2532.2,9.33854279]
[1729810664536,0.04135002,2532.3,2532.2,13.28767279]
[1729810664824,0.55,2532.6,2532.3,4.74537]
[1729810665026,0.55,2532.6,2532.4,7.8976]
[1729810665233,6.11443113,2532.5,2532.4,7.8976]
[1729810667603,6.89233113,2532.5,2532.4,7.8976]
[1729810673115,9.89233113,2532.5,2532.4,7.8976]
[1729810675749,9.93186927,2532.5,2532.4,7.8976]
[1729810676058,11.3199182,2532.5,2532.4,7.8976]
[1729810677951,10.5420182,2532.5,2532.4,7.8976]
[1729810678317,7.5420182,2532.5,2532.4,7.8976]
[1729810680581,4.53819814,2532.5,2532.4,7.8976]
[1729810680875,6.15396927,2532.5,2532.4,7.8976]
[1729810682936,4.53819814,2532.5,2532.4,8.7183]
[1729810684742,6.15396927,2532.5,2532.4,7.8976]
[1729810689291,3.98819814,2532.5,2532.4,7.8976]
[1729810690127,0.03953814,2532.5,2532.4,7.8976]
[1729810690253,0.03953814,2532.5,2532.4,9.164337]
[1729810691566,0.03953814,2532.5,2532.4,7.8976]
[1729810691994,0.58953814,2532.5,2532.4,7.8976]
[1729810692195,4.53819814,2532.5,2532.4,7.8976]
[1729810693093,6.15396927,2532.5,2532.4,7.8976]
[1729810693375,4.53819814,2532.5,2532.4,7.8976]
[1729810699971,6.15396927,2532.5,2532.4,7.8976]
[1729810701617,7.2451982,2532.5,2532.4,7.8976]
[1729810702895,5.62942707,2532.5,2532.4,7.8976]
[1729810707080,4.53819814,2532.5,2532.4,7.8976]
[1729810712314,4.53819814,2532.5,2532.4,8.6715]
[1729810712315,3.98819814,2532.5,2532.4,8.6715]
[1729810714219,4.53819814,2532.5,2532.4,7.8976]
[1729810720299,0.03953814,2532.5,2532.4,8.6844]
[1729810724117,0.03953814,2532.5,2532.4,15.11743113]
[1729810724320,0.03953814,2532.5,2532.4,15.94593092]
[1729810724518,3.94807,2532.9,2532.5,0.7868]
[1729810724717,3.94807,2532.9,2532.6,8.6838]
[1729810728759,3.94828,2532.8,2532.6,8.6838]
[1729810729050,3.94828,2532.8,2532.6,9.88349019]
[1729810729749,3.94835,2532.7,2532.6,9.88349019]
[1729810730244,3.94835,2532.7,2532.6,7.897]
[1729810734850,6.11412113,2532.7,2532.6,7.897]
[1729810735641,6.15108412,2532.7,2532.6,7.897]
[1729810736252,0.03696299,2532.7,2532.6,8.6615]
[1729810736457,3.94775,2533.1,2532.8,0.7645]
[1729810736654,0.03706656,2533.0,2532.8,0.7645]
[1729810736814,0.03706656,2533.0,2532.9,0.23802711]
[1729810737014,0.03706656,2533.0,2532.8,2.45922415]
[1729810737215,3.94768,2533.2,2532.8,2.45922415]
[1729810737456,0.03597551,2533.1,2532.8,0.84345302]
[1729810737620,3.94773,2533.1,2532.8,0.84345302]
[1729810737815,0.03594099,2533.0,2532.8,2.45922413]
[1729810738021,3.94764,2533.2,2532.9,0.64074941]